fUST/lending_fUST_20240614
["ID","MTS","AMOUNT","RATE_DAILY","PERIOD"]
[329399264,1718319052201,-196.52294572,0.00016438,2]
[329399265,1718319052212,-151.0,0.00016438,2]
[329399266,1718319052232,-175.47928462,0.00016438,2]
[329399267,1718319052255,-500.0,0.00016438,2]
[329399268,1718319052275,-1008.734673,0.00016438,2]
[329399269,1718319052291,-1008.734673,0.00016438,2]
[329399270,1718319052322,-1008.734673,0.00016438,2]
[329399271,1718319052340,-1008.734673,0.00016438,2]
[329399272,1718319052356,-1008.734673,0.00016438,2]
[329399273,1718319052377,-1008.734673,0.00016438,2]
[329399274,1718319052389,-1008.734673,0.00016438,2]
[329399275,1718319052417,-1008.734673,0.00016438,2]
[329399276,1718319052431,-515.30135931,0.00016438,2]
[329399277,1718319052442,-500.0,0.00016438,2]
[329399278,1718319052453,-1008.734673,0.00016438,2]
[329399279,1718319052475,-1008.734673,0.00016438,2]
[329399280,1718319052503,-1008.734673,0.00016438,2]
[329399281,1718319052541,-1008.734673,0.00016438,2]
[329399282,1718319052568,-1008.734673,0.00016438,2]
[329399283,1718319052612,-1008.734673,0.00016438,2]
[329399284,1718319052629,-1008.734673,0.00016438,2]
[329399285,1718319052654,-1008.734673,0.00016438,2]
[329399286,1718319052667,-1008.734673,0.00016438,2]
[329399287,1718319052679,-1008.734673,0.00016438,2]
[329399288,1718319052696,-1008.734673,0.00016438,2]
[329399289,1718319052707,-500.0,0.00016438,2]
[329399290,1718319052720,-1008.734675,0.00016438,2]
[329399291,1718319052736,-500.0,0.00016438,2]
[329399292,1718319052749,-500.0,0.00016438,2]
[329399293,1718319052766,-1999.77,0.00016438,2]
[329399294,1718319052790,-500.0,0.00016438,2]
[329399295,1718319052812,-500.0,0.00016438,2]
[329399296,1718319052825,-533.41091852,0.00016438,2]
[329399297,1718319052837,-500.0,0.00016438,2]
[329399298,1718319052849,-500.0,0.00016438,2]
[329399299,1718319052870,-500.0,0.00016438,2]
[329399300,1718319052881,-502.73516068,0.00016438,2]
[329399301,1718319052892,-1088.87,0.00016438,2]
[329399302,1718319052936,-500.0,0.00016438,2]
[329399303,1718319052950,-855.03524132,0.00016438,2]
[329399304,1718320176097,-384.13492021,0.00015363,2]
[329399305,1718320176258,-384.13492021,0.00015363,2]
[329399330,1718320235480,-1871.85293915,0.00015363,2]
[329399427,1718320241082,-303.32039991,0.00015363,2]
[329399430,1718320241095,-3105.31097092,0.00015363,2]
[329399433,1718320241110,-255.524516,0.00015363,2]
[329399435,1718320241152,-194.81512,0.00016156,2]
[329399440,1718320241172,-169.424617,0.00016156,2]
[329399443,1718320241198,-169.452813,0.00016156,2]
[329399445,1718320241209,-500.0,0.00016164,2]
[329399449,1718320241236,-156.68087417,0.00016338,2]
[329399452,1718320241254,-155.01550155,0.00016436,2]
[329399455,1718320241292,-202.13691336,0.00016437,2]
[329399458,1718320241303,-500.0,0.00016438,2]
[329399461,1718320241330,-500.0,0.00016438,2]
[329399464,1718320241350,-543.27632955,0.00016438,2]
[329399467,1718320241382,-500.0,0.00016438,2]
[329399469,1718320241405,-500.0,0.00016438,2]
[329399472,1718320241419,-500.0,0.00016438,2]
[329399476,1718320241476,-1012.32,0.00016438,2]
[329399478,1718320241492,-500.0,0.00016438,2]
[329399480,1718320241510,-500.0,0.00016438,2]
[329399483,1718320241527,-500.0,0.00016438,2]
[329399487,1718320241548,-500.0,0.00016438,2]
[329399489,1718320241572,-500.0,0.00016438,2]
[329399492,1718320241585,-500.0,0.00016438,2]
[329399495,1718320241595,-500.0,0.00016438,2]
[329399498,1718320241610,-500.0,0.00016438,2]
[329399501,1718320241645,-500.0,0.00016438,2]
[329399503,1718320241675,-500.0,0.00016438,2]
[329399506,1718320241693,-388.89224054,0.00016438,2]
[329399507,1718320241727,-503.01410505,0.00016438,2]
[329399508,1718320241772,-500.0,0.00016438,2]
[329399509,1718320241783,-500.0,0.00016438,2]
[329399510,1718320241796,-500.0,0.00016438,2]
[329399511,1718320241806,-500.0,0.00016438,2]
[329399513,1718320241818,-1000.0,0.00016438,2]
[329399515,1718320241830,-1000.0,0.00016438,2]
[329399517,1718320241848,-1000.0,0.00016438,2]
[329399520,1718320241894,-1000.0,0.00016438,2]
[329399522,1718320241904,-1000.0,0.00016438,2]
[329399523,1718320241932,-1000.0,0.00016438,2]
[329399526,1718320241956,-1000.0,0.00016438,2]
[329399528,1718320241976,-1000.0,0.00016438,2]
[329399529,1718320241990,-1000.0,0.00016438,2]
[329399531,1718320242010,-1000.0,0.00016438,2]
[329399533,1718320242035,-1000.0,0.00016438,2]
[329399535,1718320242073,-1000.0,0.00016438,2]
[329399536,1718320242093,-144.15242569,0.00016438,2]
[329399667,1718320247297,-705.58448431,0.00016438,2]
[329399739,1718320249484,-150.26309,0.00016438,2]
[329399740,1718320249502,-1000.0,0.00016438,2]
[329399741,1718320249518,-849.73691,0.00016438,2]
[329399742,1718320249531,-150.26309,0.00016438,2]
[329399743,1718320249543,-500.0,0.00016438,2]
[329399744,1718320249563,-1000.0,0.00016438,2]
[329399746,1718320249586,-1000.0,0.00016438,2]
[329399748,1718320249600,-1000.0,0.00016438,2]
[329399750,1718320249616,-908.30899159,0.00016438,2]
[329399752,1718320249649,-91.69100841,0.00016438,2]
[329399754,1718320249661,-1000.0,0.00016438,2]
[329399757,1718320249674,-1000.0,0.00016438,2]
[329399760,1718320249717,-1000.0,0.00016438,2]
[329399761,1718320249729,-1000.0,0.00016438,2]
[329399763,1718320249745,-1000.0,0.00016438,2]
[329399765,1718320249756,-1000.0,0.00016438,2]
[329399767,1718320249791,-1000.0,0.00016438,2]
[329399768,1718320249807,-1000.0,0.00016438,2]
[329399770,1718320249818,-1000.0,0.00016438,2]
[329399772,1718320249848,-1000.0,0.00016438,2]
[329399774,1718320249859,-1000.0,0.00016438,2]
[329399776,1718320249875,-500.0,0.00016438,2]
[329399779,1718320249915,-500.0,0.00016438,2]
[329399781,1718320249928,-1000.0,0.00016438,2]
[329399783,1718320249941,-1000.0,0.00016438,2]
[329399786,1718320249962,-1000.0,0.00016438,2]
[329399788,1718320249976,-1000.0,0.00016438,2]
[329399790,1718320249990,-1000.0,0.00016438,2]
[329399792,1718320250004,-1000.0,0.00016438,2]
[329399794,1718320250027,-500.0,0.00016438,2]
[329399796,1718320250052,-1000.0,0.00016438,2]
[329399798,1718320250064,-176.06596008,0.00016438,2]
[329399801,1718320250075,-1000.0,0.00016438,2]
[329399803,1718320250085,-1000.0,0.00016438,2]
[329399804,1718320250096,-1000.0,0.00016438,2]
[329399806,1718320250114,-1000.0,0.00016438,2]
[329399809,1718320250144,-1000.0,0.00016438,2]
[329399812,1718320250170,-344.53255992,0.00016438,2]
[329399814,1718320250192,-1000.0,0.00016438,2]
[329399816,1718320250237,-1000.0,0.00016438,2]
[329399818,1718320250250,-1000.0,0.00016438,2]
[329399820,1718320250280,-1000.0,0.00016438,2]
[329399823,1718320250328,-486.249687,0.00016438,2]
[329399825,1718320250357,-394.33979222,0.00016438,2]
[329400222,1718320259578,-105.66020778,0.00016438,2]
[329400224,1718320259598,-500.0,0.00016438,2]
[329400225,1718320259609,-500.0,0.00016438,2]
[329400229,1718320259631,-500.0,0.00016438,2]
[329400231,1718320259641,-500.0,0.00016438,2]
[329400234,1718320259652,-500.0,0.00016438,2]
[329400237,1718320259667,-500.0,0.00016438,2]
[329400239,1718320259678,-770.4,0.00016438,2]
[329400240,1718320259689,-500.0,0.00016438,2]
[329400243,1718320259713,-500.0,0.00016438,2]
[329400245,1718320259736,-500.0,0.00016438,2]
[329400247,1718320259746,-209.45,0.00016438,2]
[329400248,1718320259762,-1928.95,0.00016438,2]
[329400250,1718320259796,-500.0,0.00016438,2]
[329400252,1718320259817,-518.07,0.00016438,2]
[329400254,1718320259828,-500.0,0.00016438,2]
[329400256,1718320259861,-500.0,0.00016438,2]
[329400259,1718320259877,-500.0,0.00016438,2]
[329400260,1718320259904,-500.0,0.00016438,2]
[329400262,1718320259923,-151.0,0.00016438,2]
[329400264,1718320259937,-151.0,0.00016438,2]
[329400266,1718320259953,-151.0,0.00016438,2]
[329400268,1718320259968,-151.0,0.00016438,2]
[329400270,1718320259993,-151.0,0.00016438,2]
[329400272,1718320260012,-151.0,0.00016438,2]
[329400274,1718320260028,-151.0,0.00016438,2]
[329400277,1718320260072,-151.0,0.00016438,2]
[329400279,1718320260084,-151.0,0.00016438,2]
[329400280,1718320260099,-151.0,0.00016438,2]
[329400282,1718320260111,-151.0,0.00016438,2]
[329400284,1718320260122,-300.25983,0.00016438,2]
[329400286,1718320260135,-1924.61,0.00016438,2]
[329400287,1718320260149,-500.0,0.00016438,2]
[329400289,1718320260180,-151.0,0.00016438,2]
[329400291,1718320260217,-151.0,0.00016438,2]
[329400293,1718320260235,-1736.02,0.00016438,2]
[329400296,1718320260263,-500.0,0.00016438,2]
[329400298,1718320260274,-1916.45,0.00016438,2]
[329400300,1718320260286,-500.0,0.00016438,2]
[329400302,1718320260298,-650.19,0.00016438,2]
[329400303,1718320260309,-500.0,0.00016438,2]
[329400305,1718320260324,-500.0,0.00016438,2]
[329400307,1718320260338,-500.0,0.00016438,2]
[329400310,1718320260354,-1043.5,0.00016438,2]
[329400312,1718320260368,-2411.31,0.00016438,2]
[329400314,1718320260395,-500.0,0.00016438,2]
[329400316,1718320260433,-500.0,0.00016438,2]
[329400318,1718320260449,-500.0,0.00016438,2]
[329400319,1718320260464,-500.0,0.00016438,2]
[329400321,1718320260475,-792.81,0.00016438,2]
[329400323,1718320260489,-500.0,0.00016438,2]
[329400325,1718320260528,-264.844927,0.00016438,2]
[329400327,1718320260539,-264.844927,0.00016438,2]
[329400330,1718320260565,-264.844927,0.00016438,2]
[329400331,1718320260600,-264.844927,0.00016438,2]
[329400333,1718320260620,-264.844927,0.00016438,2]
[329400335,1718320260633,-264.844927,0.00016438,2]
[329400337,1718320260644,-264.844927,0.00016438,2]
[329400339,1718320260654,-2327.31,0.00016438,2]
[329400342,1718320260682,-264.844927,0.00016438,2]
[329400343,1718320260700,-264.844927,0.00016438,2]
[329400345,1718320260716,-500.0,0.00016438,2]
[329400346,1718320260727,-264.844927,0.00016438,2]
[329400348,1718320260742,-509.99371131,0.00016438,2]
[329400350,1718320260776,-90.21793966,0.00016438,2]
[329400354,1718320260840,-264.844927,0.00016438,2]
[329400356,1718320260853,-264.844927,0.00016438,2]
[329400358,1718320260865,-122.82494743,0.00016438,2]
[329405168,1718320366899,246.09852012,9.999e-05,2]
[329406919,1718320950191,10000.0,0.000265,120]
[329406920,1718320969977,5000.0,0.000265,120]
[329406921,1718321023946,456.82064216,9.999e-05,2]
[329406992,1718321436511,-2927.8189714,0.00015226,2]
[329407188,1718321441624,-2019.3906943,0.00015226,2]
[329407190,1718321441644,-255.5245173,0.00015411,2]
[329407192,1718321441656,-6844.34397902,0.00015435,2]
[329407226,1718321442183,-1544.13388645,0.00015435,2]
[329407228,1718321442200,-703.38142166,0.00015435,2]
[329407230,1718321442218,-255.10540415,0.00016164,2]
[329407433,1718321447714,-244.89459585,0.00016164,2]
[329407436,1718321447740,-125.07131181,0.00016336,2]
[329407541,1718321450281,-1092.10471742,0.00016336,2]
[329407543,1718321450302,-193.27998331,0.00016336,2]
[329407545,1718321450336,-217.18829622,0.00016434,2]
[329407546,1718321450360,-183.89541355,0.00016434,2]
[329407547,1718321450371,-172.28753153,0.00016434,2]
[329407548,1718321450382,-190.05330554,0.00016435,2]
[329407549,1718321450393,-200.88114693,0.00016436,10]
[329407550,1718321450427,-309.79014398,0.00016436,2]
[329407551,1718321450449,-166.51601448,0.00016436,2]
[329407552,1718321450460,-241.82372492,0.00016436,2]
[329407553,1718321450484,-1911.02618015,0.00016436,2]
[329407554,1718321450508,-1342.97936406,0.00016436,2]
[329407555,1718321450536,-8847.50782748,0.00016436,2]
[329407556,1718321450548,-48029.28306831,0.00016436,2]
[329407557,1718321450565,-215.45514594,0.00016436,2]
[329407558,1718321450576,-945.74878612,0.00016436,2]
[329407559,1718321450608,-1716.13741953,0.00016436,2]
[329407560,1718321450622,-695.47179616,0.00016436,2]
[329407561,1718321450636,-33261.0297478,0.00016437,2]
[329407562,1718321450676,-500.0,0.00016438,2]
[329407563,1718321450705,-511.68499252,0.00016438,2]
[329407564,1718321450732,-500.0,0.00016438,2]
[329407565,1718321450742,-500.0,0.00016438,2]
[329407566,1718321450765,-505.95545993,0.00016438,2]
[329407569,1718321450816,-500.0,0.00016438,2]
[329407571,1718321450828,-500.0,0.00016438,2]
[329407573,1718321450839,-500.0,0.00016438,2]
[329407574,1718321450872,-500.0,0.00016438,2]
[329407576,1718321450882,-484.40192052,0.00016438,2]
[329407578,1718321450897,-500.0,0.00016438,2]
[329407579,1718321450920,-500.0,0.00016438,2]
[329407580,1718321450932,-500.0,0.00016438,2]
[329407582,1718321450989,-503.76418704,0.00016438,2]
[329407584,1718321451053,-500.0,0.00016438,2]
[329407587,1718321451101,-500.0,0.00016438,2]
[329407590,1718321451144,-500.0,0.00016438,2]
[329407592,1718321451170,-566.45521637,0.00016438,2]
[329407594,1718321451197,-506.51533363,0.00016438,2]
[329407596,1718321451236,-500.0,0.00016438,2]
[329407598,1718321451252,-500.0,0.00016438,2]
[329407600,1718321451263,-566.40968636,0.00016438,2]
[329407602,1718321451294,-500.0,0.00016438,2]
[329407604,1718321451317,-500.0,0.00016438,2]
[329407606,1718321451330,-500.0,0.00016438,2]
[329407608,1718321451350,-500.0,0.00016438,2]
[329407610,1718321451360,-500.0,0.00016438,2]
[329407612,1718321451385,-500.0,0.00016438,2]
[329407615,1718321451407,-425.64234489,0.00016438,2]
[329407618,1718321451442,-589.34499721,0.00016438,2]
[329407619,1718321451466,-500.0,0.00016438,2]
[329407620,1718321451476,-199.61115087,0.00016438,2]
[329407621,1718321451489,-500.0,0.00016438,2]
[329407622,1718321451511,-500.0,0.00016438,2]
[329407623,1718321451530,-500.0,0.00016438,2]
[329407624,1718321451551,-500.0,0.00016438,2]
[329407625,1718321451577,-500.0,0.00016438,2]
[329407626,1718321451587,-500.0,0.00016438,2]
[329407627,1718321451602,-500.0,0.00016438,2]
[329407628,1718321451613,-456.50360875,0.00016438,2]
[329407629,1718321451630,-500.0,0.00016438,2]
[329407630,1718321451662,-500.0,0.00016438,2]
[329407631,1718321451678,-500.0,0.00016438,2]
[329407632,1718321451724,-83.19704688,0.00016438,2]
[329407633,1718321451828,-416.80295312,0.00016438,2]
[329407634,1718321451842,-106.83404697,0.00016438,2]
[329407635,1718321451864,-393.16595303,0.00016438,2]
[329407636,1718321451875,-367.91350064,0.00016438,2]
[329408135,1718322634954,-386.866894,0.00015468,2]
[329408136,1718322634983,-483.353843,0.00016164,2]
[329408137,1718322635032,-267.89296758,0.00016338,2]
[329408148,1718322641398,-797.13605804,0.00016338,2]
[329408149,1718322641409,-509.64113038,0.00016436,2]
[329408150,1718322641430,-628.4725742,0.00016436,2]
[329408151,1718322641448,-403.74572917,0.00016438,2]
[329408152,1718322641476,-500.0,0.00016438,2]
[329408153,1718322641490,-500.0,0.00016438,2]
[329408154,1718322641544,-329.61322259,0.00016438,2]
[329408155,1718322641604,-170.38677741,0.00016438,2]
[329408156,1718322641617,-500.0,0.00016438,2]
[329408157,1718322641630,-500.0,0.00016438,2]
[329408158,1718322641652,-271.53159734,0.00016438,2]
[329408159,1718322641690,-500.0,0.00016438,2]
[329408160,1718322641734,-497.28059491,0.00016438,2]
[329408161,1718322641748,-477.5,0.00016438,2]
[329408162,1718322641772,-500.0,0.00016438,2]
[329408163,1718322641856,-500.0,0.00016438,2]
[329408164,1718322641873,-500.0,0.00016438,2]
[329408165,1718322641885,-500.0,0.00016438,2]
[329408166,1718322641897,-512.67407817,0.00016438,2]
[329408167,1718322641930,-378.59,0.00016438,2]
[329408168,1718322641947,-500.0,0.00016438,2]
[329408169,1718322641966,-500.0,0.00016438,2]
[329408170,1718322641998,-500.0,0.00016438,2]
[329408171,1718322642059,-409.11470724,0.00016438,2]
[329408194,1718322649144,-90.88529276,0.00016438,2]
[329408196,1718322649158,-424.91424621,0.00016438,2]
[329408198,1718322649170,-500.0,0.00016438,2]
[329408200,1718322649196,-500.0,0.00016438,2]
[329408202,1718322649210,-500.0,0.00016438,2]
[329408204,1718322649224,-397.74679846,0.00016438,2]
[329408205,1718322649243,-500.0,0.00016438,2]
[329408206,1718322649256,-500.0,0.00016438,2]
[329408207,1718322649267,-10.89135266,0.00016438,2]
[329408208,1718322649281,-324.76054633,0.00016438,2]
[329408209,1718322649296,-164.34810101,0.00016438,2]
[329408210,1718322649313,-500.0,0.00016438,2]
[329408211,1718322649328,-143.25023771,0.00016438,2]
[329408225,1718322722505,657.57,0.00010959,2]
[329408272,1718323231938,200.0,0.0002538,120]
[329408273,1718323291506,200.0,0.0002477,120]
[329408274,1718323351820,200.0,0.0002577,120]
[329408296,1718323836130,-2189.87307701,0.00015369,2]
[329408311,1718323841765,-15529.18598439,0.00015369,2]
[329408312,1718323841789,-260.151566,0.00015453,2]
[329408314,1718323841820,-459.18615,0.00016164,2]
[329408316,1718323841860,-135.47100816,0.00016338,2]
[329408318,1718323841897,-796.42938924,0.00016338,2]
[329408321,1718323841908,-2444.06054457,0.00016437,2]
[329408323,1718323841936,-500.0,0.00016438,2]
[329408326,1718323841974,-519.83967387,0.00016438,2]
[329408328,1718323842023,-500.0,0.00016438,2]
[329408330,1718323842039,-356.74976229,0.00016438,2]
[329408332,1718323842052,-372.15094443,0.00016438,2]
[329408355,1718323842571,-128.47054872,0.00016438,2]
[329408357,1718323842594,-500.0,0.00016438,2]
[329408358,1718323842620,-500.0,0.00016438,2]
[329408361,1718323842635,-500.0,0.00016438,2]
[329408362,1718323842660,-500.0,0.00016438,2]
[329408364,1718323842695,-172.15973167,0.00016438,2]
[329408366,1718323842720,-433.53905991,0.00016438,2]
[329408670,1718323852116,-66.46094009,0.00016438,2]
[329408671,1718323852136,-500.0,0.00016438,2]
[329408672,1718323852153,-75.76224533,0.00016438,2]
[329408850,1718324619235,2644.05459629,9.999e-05,2]
[329408856,1718325007465,-382.8791183,0.00015,3]
[329408857,1718325007642,-382.8791183,0.00015,3]
[329408866,1718325034698,-27191.92987849,0.00015,3]
[329408867,1718325034711,-436.226842,0.00016164,2]
[329408870,1718325034756,-155.45573771,0.00016335,2]
[329408871,1718325034773,-188.62088635,0.00016335,2]
[329408872,1718325034796,-199.9379938,0.00016335,2]
[329408873,1718325034819,-286.53135198,0.00016336,2]
[329408874,1718325034843,-15049.64538148,0.00016337,2]
[329408992,1718325048834,-412.80292201,0.00016333,2]
[329408994,1718325048872,-402.60992575,0.00016333,2]
[329408995,1718325048885,-8591.99334276,0.00016337,2]
[329409021,1718325049567,-1042.2551591,0.00016337,2]
[329409023,1718325049598,-25278.63317013,0.00016433,2]
[329409024,1718325049610,-552.39710422,0.00016436,2]
[329409027,1718325049634,-515.61728899,0.00016436,2]
[329409029,1718325049651,-1341.79550096,0.00016436,2]
[329409031,1718325049680,-309.92252015,0.00016436,2]
[329409033,1718325049708,-307.38416425,0.00016436,2]
[329409034,1718325049722,-190.4326803,0.00016436,2]
[329409036,1718325049758,-692.0586622,0.00016436,2]
[329409040,1718325049804,-1204.66016215,0.00016436,2]
[329409042,1718325049817,-945.46842875,0.00016436,2]
[329409044,1718325049830,-411.00285074,0.00016436,2]
[329409045,1718325049868,-966.70385321,0.00016436,2]
[329409048,1718325049879,-1911.54148934,0.00016436,2]
[329409050,1718325049891,-269.11328986,0.00016437,2]
[329409051,1718325049903,-215.86209911,0.00016437,2]
[329409053,1718325049921,-178.64166144,0.00016437,2]
[329409055,1718325049934,-261.91979643,0.00016437,2]
[329409057,1718325049948,-1801.42553712,0.00016437,2]
[329409060,1718325049987,-1845.55,0.00016437,2]
[329409062,1718325050006,-1881.06810049,0.00016437,2]
[329409064,1718325050017,-500.0,0.00016438,2]
[329409066,1718325050029,-501.17999592,0.00016438,2]
[329409068,1718325050056,-513.73701891,0.00016438,2]
[329409069,1718325050100,-158.918561,0.00016438,2]
[329409071,1718325050113,-500.0,0.00016438,2]
[329409073,1718325050127,-500.0,0.00016438,2]
[329409075,1718325050156,-500.0,0.00016438,2]
[329409077,1718325050171,-151.0,0.00016438,2]
[329409078,1718325050182,-500.0,0.00016438,2]
[329409081,1718325050234,-500.0,0.00016438,2]
[329409083,1718325050247,-151.0,0.00016438,2]
[329409085,1718325050272,-151.0,0.00016438,2]
[329409086,1718325050302,-159.2296168,0.00016438,2]
[329409088,1718325050333,-49.4517522,0.00016438,2]
[329409090,1718325050372,-151.0,0.00016438,2]
[329409092,1718325050385,-500.0,0.00016438,2]
[329409093,1718325050400,-500.0,0.00016438,2]
[329409095,1718325050410,-34.6082478,0.00016438,2]
[329409113,1718325051026,-465.3917522,0.00016438,2]
[329409115,1718325051037,-45.713891,0.00016438,2]
[329409117,1718325051056,-924.426109,0.00016438,2]
[329409119,1718325051070,-541.75930841,0.00016438,2]
[329409122,1718325051117,-500.0,0.00016438,2]
[329409123,1718325051134,-500.0,0.00016438,2]
[329409125,1718325051146,-500.0,0.00016438,2]
[329409127,1718325051159,-519.26423751,0.00016438,2]
[329409130,1718325051237,-318.1255312,0.00016438,2]
[329409131,1718325051254,-181.8744688,0.00016438,2]
[329409132,1718325051272,-500.0,0.00016438,2]
[329409133,1718325051301,-500.0,0.00016438,2]
[329409134,1718325051321,-99.23360908,0.00016438,2]
[329409135,1718325051342,-400.76639092,0.00016438,2]
[329409136,1718325051360,-500.0,0.00016438,2]
[329409138,1718325051373,-500.0,0.00016438,2]
[329409140,1718325051392,-500.0,0.00016438,2]
[329409142,1718325051410,-500.0,0.00016438,2]
[329409144,1718325051431,-500.0,0.00016438,2]
[329409146,1718325051456,-447.04823096,0.00016438,2]
[329409147,1718325051474,-500.0,0.00016438,2]
[329409149,1718325051496,-500.0,0.00016438,2]
[329409152,1718325051552,-500.0,0.00016438,2]
[329409153,1718325051568,-500.0,0.00016438,2]
[329409155,1718325051582,-500.0,0.00016438,2]
[329409158,1718325051603,-500.0,0.00016438,2]
[329409159,1718325051626,-500.0,0.00016438,2]
[329409161,1718325051639,-364.20641032,0.00016438,2]
[329409163,1718325051653,-500.0,0.00016438,2]
[329409165,1718325051700,-500.0,0.00016438,2]
[329409168,1718325051756,-500.0,0.00016438,2]
[329409170,1718325051788,-500.0,0.00016438,2]
[329409171,1718325051808,-424.23775467,0.00016438,2]
[329409174,1718325051822,-500.0,0.00016438,2]
[329409175,1718325051834,-500.0,0.00016438,2]
[329409179,1718325051876,-500.0,0.00016438,2]
[329409183,1718325051940,-500.0,0.00016438,2]
[329409184,1718325051951,-500.0,0.00016438,2]
[329409186,1718325051964,-500.0,0.00016438,2]
[329409188,1718325051977,-500.0,0.00016438,2]
[329409190,1718325051997,-500.0,0.00016438,2]
[329409192,1718325052012,-500.0,0.00016438,2]
[329409195,1718325052029,-500.0,0.00016438,2]
[329409197,1718325052053,-500.0,0.00016438,2]
[329409198,1718325052097,-244.88562426,0.00016438,2]
[329409200,1718325052109,-500.0,0.00016438,2]
[329409202,1718325052136,-305.78318971,0.00016438,2]
[329409204,1718325052151,-500.0,0.00016438,2]
[329409207,1718325052183,-500.0,0.00016438,2]
[329409208,1718325052209,-500.0,0.00016438,2]
[329409210,1718325052221,-500.0,0.00016438,2]
[329409212,1718325052232,-500.0,0.00016438,2]
[329409214,1718325052244,-500.0,0.00016438,2]
[329409216,1718325052255,-500.0,0.00016438,2]
[329409217,1718325052266,-500.0,0.00016438,2]
[329409219,1718325052278,-500.0,0.00016438,2]
[329409221,1718325052293,-500.0,0.00016438,2]
[329409224,1718325052348,-500.0,0.00016438,2]
[329409225,1718325052366,-500.0,0.00016438,2]
[329409228,1718325052378,-500.0,0.00016438,2]
[329409229,1718325052388,-214.35570282,0.00016438,2]
[329409231,1718325052399,-500.0,0.00016438,2]
[329409233,1718325052438,-1844.41,0.00016438,2]
[329409235,1718325052493,-594.16,0.00016438,2]
[329409237,1718325052506,-500.0,0.00016438,2]
[329409238,1718325052543,-500.0,0.00016438,2]
[329409241,1718325052555,-500.0,0.00016438,2]
[329409243,1718325052572,-500.0,0.00016438,2]
[329409245,1718325052586,-500.0,0.00016438,2]
[329409246,1718325052604,-2504.12,0.00016438,2]
[329409248,1718325052615,-500.0,0.00016438,2]
[329409250,1718325052627,-500.0,0.00016438,2]
[329409252,1718325052640,-500.0,0.00016438,2]
[329409254,1718325052662,-500.0,0.00016438,2]
[329409256,1718325052676,-1277.24,0.00016438,2]
[329409258,1718325052692,-226.85853495,0.00016438,2]
[329409259,1718325052708,-1127.23146505,0.00016438,2]
[329409260,1718325052719,-550.59009883,0.00016438,2]
[329409262,1718325052732,-500.0,0.00016438,2]
[329409264,1718325052745,-339.15500195,0.00016438,2]
[329409266,1718325052756,-500.0,0.00016438,2]
[329409267,1718325052777,-500.0,0.00016438,2]
[329409270,1718325052811,-28.13985804,0.00016438,2]
[329409904,1718325403409,150.041,0.00014,2]
[329409969,1718326236222,-22339.0294788,0.00015349,2]
[329409972,1718326236237,-187.225173,0.00015386,2]
[329409974,1718326236248,-439.415502,0.00016164,2]
[329409975,1718326236277,-167.304851,0.00016185,2]
[329409978,1718326236294,-294.468373,0.00016185,2]
[329409979,1718326236305,-167.304852,0.00016185,2]
[329409982,1718326236318,-294.468373,0.00016185,2]
[329409984,1718326236331,-593.0,0.000164,2]
[329409986,1718326236351,-890.5569,0.000164,2]
[329409988,1718326236382,-394.24290711,0.00016435,2]
[329409990,1718326236421,-351.76199697,0.00016436,2]
[329409993,1718326236444,-724.16175478,0.00016436,2]
[329410026,1718326242642,-377.08092539,0.00016436,2]
[329410027,1718326242666,-721.70560726,0.00016436,2]
[329410028,1718326242680,-254.67719146,0.00016437,2]
[329410029,1718326242691,-500.0,0.00016438,2]